fUSD/lending_fUSD_20250421
["ID","MTS","AMOUNT","RATE_DAILY","PERIOD"]
[358530850,1745236248868,-500.0,0.00048872,7]
[358530851,1745236248880,-500.0,0.00048872,7]
[358530852,1745236248890,-500.0,0.00048872,7]
[358530853,1745236248900,-500.0,0.00048872,7]
[358530854,1745236248910,-500.0,0.00048872,7]
[358530855,1745236248919,-477.72571951,0.00048872,7]
[358530856,1745236248932,-500.0,0.00048872,7]
[358530857,1745236248941,-311.15732723,0.00048872,7]
[358530858,1745236248951,-2728.34,0.00048872,7]
[358530859,1745236248960,-2728.34,0.00048872,7]
[358530860,1745236248970,-2728.34,0.00048872,7]
[358530861,1745236248979,-2728.34,0.00048872,7]
[358530862,1745236248989,-2728.34,0.00048872,7]
[358530863,1745236248999,-2728.34,0.00048872,7]
[358530864,1745236249009,-2728.34,0.00048872,7]
[358530865,1745236249020,-2728.34,0.00048872,7]
[358530866,1745236249029,-2728.34,0.00048872,7]
[358530867,1745236249039,-2728.34,0.00048872,7]
[358530868,1745236249048,-2728.34,0.00048872,7]
[358530869,1745236249058,-2728.34,0.00048872,7]
[358530870,1745236249068,-2728.34,0.00048872,7]
[358530871,1745236249077,-2728.34,0.00048872,7]
[358530872,1745236249087,-2728.34,0.00048872,7]
[358530873,1745236249097,-2728.3450256,0.00048872,7]
[358530874,1745236249107,-515.53,0.00048872,7]
[358530875,1745236249117,-515.53,0.00048872,7]
[358530876,1745236249127,-515.53,0.00048872,7]
[358530877,1745236249136,-515.53,0.00048872,7]
[358530878,1745236249146,-515.53,0.00048872,7]
[358530879,1745236249155,-515.53,0.00048872,7]
[358530880,1745236249166,-515.53,0.00048872,7]
[358530881,1745236249176,-515.53,0.00048872,7]
[358530882,1745236249186,-515.53,0.00048872,7]
[358530883,1745236249196,-515.53,0.00048872,7]
[358530884,1745236249207,-515.53,0.00048872,7]
[358530885,1745236249219,-515.53,0.00048872,7]
[358530886,1745236249229,-515.53,0.00048872,7]
[358530887,1745236249239,-515.6612867,0.00048872,7]
[358530888,1745236249248,-953.93,0.00048872,7]
[358530889,1745236249258,-953.93,0.00048872,7]
[358530890,1745236249267,-953.93,0.00048872,7]
[358530891,1745236249277,-953.93,0.00048872,7]
[358530892,1745236249287,-953.93,0.00048872,7]
[358530893,1745236249296,-953.93,0.00048872,7]
[358530894,1745236249306,-953.93,0.00048872,7]
[358530895,1745236249316,-953.93,0.00048872,7]
[358530896,1745236249326,-953.93,0.00048872,7]
[358530897,1745236249335,-953.93,0.00048872,7]
[358530898,1745236249345,-953.93,0.00048872,7]
[358530899,1745236249355,-953.93,0.00048872,7]
[358530900,1745236249365,-953.93,0.00048872,7]
[358530901,1745236249374,-953.93,0.00048872,7]
[358530902,1745236249384,-923.22414216,0.00048872,2]
[358530903,1745236249394,-262670.22054509,0.00048872,2]
[358530904,1745236249403,-1877326.22492687,0.00048873,30]
[358530905,1745236249428,-811.25,0.00048872,7]
[358530906,1745236250518,-500.0,0.00046654,7]
[358530907,1745236250528,-297.89710001,0.00046654,2]
[358530908,1745236250539,-236.498954,0.00046654,2]
[358530909,1745236250549,-500.0,0.00047461,7]
[358530910,1745236250558,-500.0,0.00048199,7]
[358530911,1745236250568,-142.68,0.00048872,7]
[358530912,1745236250577,-279.7814598,0.00048872,7]
[358530913,1745236250589,-674.38416671,0.00048872,7]
[358530914,1745236250598,-1269.25580329,0.00048873,30]
[358530915,1745236250609,-280.02846747,0.00048873,30]
[358530917,1745236302377,-9000000.0,0.00048873,30]
[358530918,1745236306442,-9000000.0,0.00048873,30]
[358530919,1745236310021,-9000000.0,0.00048873,30]
[358530920,1745236313451,-9000000.0,0.00048873,30]
[358530921,1745236324084,-9000000.0,0.00048873,30]
[358530922,1745236362933,-9000000.0,0.00048873,30]
[358530923,1745236407859,-9000000.0,0.00048873,30]
[358530924,1745236411526,-9000000.0,0.00048873,30]
[358530925,1745236419864,-9000000.0,0.00048873,30]
[358530926,1745236503153,5000.0,0.0003,30]
[358530927,1745236503985,-289.48615611,0.0003,30]
[358530928,1745236682608,-239.8364251,0.0003,30]
[358530930,1745236803827,-206.86512878,0.0003,30]
[358530931,1745236844029,-171.20058739,0.000372,120]
[358530933,1745236986532,-168.23914536,0.0003,30]
[358530935,1745237043470,-206.86179215,0.0003,30]
[358530936,1745237108792,-152.0,0.0003,30]
[358530937,1745237162691,-230.71561576,0.0003,30]
[358530938,1745237281857,-150.0,0.0003,30]
[358530939,1745237328618,118068.33860969,0.000231,120]
[358530960,1745237432260,-426.36644233,0.0003,30]
[358530961,1745237432271,-704.1835659,0.0003,30]
[358530962,1745237432282,-310.31,0.0003,30]
[358530963,1745237432312,-574.01311803,0.0003,30]
[358530964,1745237432324,-438.25924277,0.0003,30]
[358530965,1745237432335,-498.40740433,0.0003,30]
[358530966,1745237432347,-460.75959115,0.0003,30]
[358530967,1745237432356,-236.32451277,0.00033,2]
[358530968,1745237432382,-13.67548723,0.00033,2]
[358530969,1745237432392,-250.0,0.00033,2]
[358530970,1745237432402,-186.32451277,0.00035438,2]
[358530971,1745237432414,-700.0,0.00035438,2]
[358530972,1745237432425,-255.97559429,0.00035438,2]
[358530973,1745237432449,-1007.92474592,0.00035438,2]
[358530974,1745237432459,-156.97071829,0.00035438,2]
[358530975,1745237432470,-152.0,0.00035847,2]
[358530976,1745237432480,-225.46231856,0.000372,120]
[358530977,1745237432489,-1452.66,0.00043779,2]
[358530978,1745237432498,-550.0,0.00044044,5]
[358530979,1745237432508,-550.0,0.00044045,5]
[358530980,1745237432518,-738.14033125,0.00044046,2]
[358530981,1745237432527,-302.0,0.0004421,2]
[358530982,1745237432536,-150.99,0.0004421,2]
[358530983,1745237432546,-5367.17760926,0.0004421,2]
[358530984,1745237432564,-1074.00239074,0.0004421,2]
[358530985,1745237432573,-1000.0,0.00044761,2]
[358530986,1745237432582,-6334.47786116,0.0004481,2]
[358530987,1745237432594,-1315.05914698,0.0004481,2]
[358530988,1745237432605,-2034.85299186,0.0004481,2]
[358530989,1745237432614,-531.41,0.0004481,2]
[358530990,1745237432623,-242.08,0.00044943,120]
[358530991,1745237432634,-714.08760195,0.00045,4]
[358530993,1745237432643,-219.41,0.00045,120]
[358530995,1745237432652,-798.76225034,0.00045178,2]
[358531014,1745237432815,-270.33973497,0.00045178,2]
[358531024,1745237432893,-779.1,0.00045178,2]
[358531026,1745237432904,-10179.38801469,0.00045178,2]
[358531028,1745237432913,-200.0,0.00045203,4]
[358531030,1745237432923,-1040.00247903,0.00045203,6]
[358531032,1745237432932,-6625.00950628,0.00045204,2]
[358531122,1745237438405,-2.51724805,0.00045204,2]
[358531123,1745237438445,-1903.46099217,0.00045204,2]
[358531124,1745237438499,-2502.48038961,0.00045204,2]
[358531125,1745237438510,-10541.77465607,0.00045204,2]
[358531126,1745237438521,-2324.75720782,0.00045204,2]
[358531127,1745237438531,-7946.3,0.00045213,2]
[358531128,1745237438540,-243.12,0.00045257,2]
[358531129,1745237438550,-21867.00780622,0.00045275,2]
[358531130,1745237438559,-798.6425792,0.00045546,2]
[358531131,1745237438569,-150.0,0.00045684,2]
[358531132,1745237438579,-151.11,0.00045688,2]
[358531133,1745237438588,-150.0,0.0004578,7]
[358531134,1745237438597,-798.6425792,0.00045796,2]
[358531135,1745237438607,-500.0,0.00045873,10]
[358531136,1745237438615,-500.0,0.00045873,10]
[358531137,1745237438624,-8857.87,0.00045876,2]
[358531138,1745237438634,-150.99,0.00045876,30]
[358531139,1745237438643,-3039.57,0.00045876,2]
[358531140,1745237438652,-6812.22,0.00045876,2]
[358531141,1745237438661,-47990.13081573,0.00045877,30]
[358531142,1745237438671,-1408.652,0.00045877,75]
[358531143,1745237438680,-500.0,0.00046035,2]
[358531144,1745237438690,-1452.66,0.00046043,2]
[358531145,1745237438699,-798.6425792,0.00046179,2]
[358531146,1745237438709,-17874.10662967,0.00046183,2]
[358531147,1745237438719,-269.5013,0.00046332,2]
[358531148,1745237438728,-2585.7196,0.00046332,2]
[358531149,1745237438737,-798.6425792,0.00046361,2]
[358531150,1745237438747,-3994.2890625,0.00046432,4]
[358531151,1745237438756,-500.0,0.000465,120]
[358531152,1745237438766,-213.0,0.00046554,2]
[358531153,1745237438775,-316.2942,0.00046554,2]
[358531154,1745237438784,-765.66,0.00046586,3]
[358531155,1745237438794,-798.6425792,0.00046599,2]
[358531156,1745237438805,-500.0,0.00046654,7]
[358531157,1745237438815,-500.0,0.00046654,7]
[358531158,1745237438825,-500.0,0.00046654,7]
[358531159,1745237438835,-500.0,0.00046654,7]
[358531160,1745237438844,-500.0,0.00046654,7]
[358531161,1745237438855,-500.0,0.00046654,7]
[358531162,1745237438864,-500.0,0.00046654,7]
[358531164,1745237438874,-500.0,0.00046654,7]
[358531166,1745237438883,-500.0,0.00046654,7]
[358531168,1745237438892,-325.14486026,0.00046654,7]
[358531170,1745237438902,-500.0,0.00046654,7]
[358531172,1745237438911,-500.0,0.00046654,7]
[358531174,1745237438921,-1707.20690198,0.00046776,15]
[358531175,1745237438930,-280.0,0.00046782,5]
[358531178,1745237438940,-424.38734791,0.00046865,120]
[358531180,1745237438949,-500.0,0.00046865,7]
[358531182,1745237438959,-500.0,0.00046865,7]
[358531184,1745237438968,-1019.44,0.00046865,2]
[358531186,1745237438977,-500.0,0.00046865,7]
[358531187,1745237438987,-500.0,0.00046865,7]
[358531189,1745237438996,-500.0,0.00046865,7]
[358531191,1745237439006,-500.0,0.00046865,7]
[358531193,1745237439015,-500.0,0.00046865,7]
[358531194,1745237439024,-47544.6768914,0.00046866,4]
[358531196,1745237439034,-500.0,0.00046873,10]
[358531198,1745237439043,-500.0,0.00046873,2]
[358531199,1745237439052,-500.0,0.00046873,5]
[358531201,1745237439061,-500.0,0.00046873,10]
[358531203,1745237439071,-504.75280513,0.00046873,10]
[358531205,1745237439080,-500.0,0.00046875,7]
[358531207,1745237439089,-500.0,0.00046875,7]
[358531209,1745237439099,-846.12,0.00046875,7]
[358531211,1745237439107,-500.0,0.00046875,7]
[358531213,1745237439117,-500.0,0.00046875,7]
[358531215,1745237439126,-500.0,0.00046875,7]
[358531217,1745237439135,-535.34739309,0.00046875,7]
[358531219,1745237439144,-567.84621715,0.00046875,7]
[358531221,1745237439154,-170.33126059,0.00046875,7]
[358531223,1745237439168,-500.0,0.00046875,7]
[358531225,1745237439177,-1000.0,0.00046875,7]
[358531227,1745237439186,-500.0,0.00046875,7]
[358531229,1745237439195,-500.0,0.00046875,7]
[358531243,1745237439325,-500.0,0.00046875,7]
[358531245,1745237439335,-500.0,0.00046875,7]
[358531247,1745237439344,-500.0,0.00046875,7]
[358531249,1745237439354,-674.61,0.00046875,7]
[358531251,1745237439365,-500.0,0.00046875,7]
[358531253,1745237439374,-500.0,0.00046875,7]
[358531255,1745237439383,-500.0,0.00046875,7]
[358531257,1745237439393,-500.0,0.00046875,7]
[358531259,1745237439402,-550.48563296,0.00046875,7]
[358531261,1745237439411,-500.0,0.00046875,7]
[358531262,1745237439420,-500.0,0.00046875,7]
[358531263,1745237439429,-500.0,0.00046875,7]
[358531264,1745237439439,-500.0,0.00046875,7]
[358531265,1745237439448,-500.0,0.00046875,7]
[358531266,1745237439460,-500.0,0.00046875,7]
[358531267,1745237439469,-500.0,0.00046875,7]
[358531268,1745237439479,-500.0,0.00046875,7]
[358531269,1745237439488,-500.0,0.00046875,7]
[358531270,1745237439497,-500.0,0.00046875,7]
[358531271,1745237439507,-2000.0,0.00046875,7]
[358531272,1745237439517,-500.0,0.00046875,7]
[358531273,1745237439526,-500.0,0.00046875,7]
[358531274,1745237439536,-500.0,0.00046875,7]
[358531275,1745237439545,-500.0,0.00046875,7]
[358531276,1745237439555,-500.0,0.00046875,7]
[358531277,1745237439564,-514.61248297,0.00046875,7]
[358531278,1745237439574,-500.0,0.00046875,7]
[358531279,1745237439584,-500.0,0.00046875,7]
[358531281,1745237439593,-635.59736655,0.00046875,7]
[358531283,1745237439602,-500.0,0.00046875,7]
[358531285,1745237439612,-500.0,0.00046875,7]
[358531287,1745237439622,-500.0,0.00046875,7]
[358531289,1745237439631,-500.0,0.00046875,7]
[358531291,1745237439641,-500.0,0.00046875,7]
[358531293,1745237439650,-500.0,0.00046875,7]
[358531295,1745237439659,-500.0,0.00046875,7]
[358531297,1745237439669,-500.0,0.00046875,7]
[358531299,1745237439678,-500.0,0.00046875,7]
[358531301,1745237439688,-500.0,0.00046875,7]
[358531303,1745237439697,-500.0,0.00046875,7]
[358531305,1745237439710,-500.0,0.00046875,7]
[358531307,1745237439719,-500.0,0.00046875,7]
[358531309,1745237439729,-454.469512,0.00046875,7]
[358531311,1745237439739,-500.0,0.00046875,7]
[358531313,1745237439748,-500.0,0.00046875,7]
[358531315,1745237439758,-500.0,0.00046875,7]
[358531317,1745237439767,-4204.608142,0.00046875,7]
[358531319,1745237439776,-500.0,0.00046875,7]
[358531321,1745237439786,-542.88099926,0.00046875,7]
[358531323,1745237439795,-2344.97,0.00046875,7]
[358531325,1745237439804,-500.0,0.00046875,7]
[358531327,1745237439814,-478.472858,0.00046875,7]
[358531329,1745237439824,-324.445769,0.00046875,7]
[358531331,1745237439833,-500.0,0.00046875,7]
[358531333,1745237439843,-3855.141887,0.00046875,7]
[358531335,1745237439852,-500.0,0.00046875,7]
[358531337,1745237439861,-1254.93,0.00046876,5]
[358531339,1745237439871,-1268.01,0.00046876,5]
[358531341,1745237439880,-539.96747981,0.00046876,7]
[358531343,1745237439889,-500.0,0.00046876,7]
[358531345,1745237439899,-526.44724492,0.00046876,7]
[358531347,1745237439909,-500.0,0.00046876,7]
[358531349,1745237439919,-500.0,0.00046876,7]
[358531351,1745237439929,-542.75,0.00046876,7]
[358531353,1745237439938,-533.96908051,0.00046876,7]
[358531355,1745237439947,-270.19695642,0.00046876,7]
[358531357,1745237439959,-500.0,0.00046876,7]
[358531359,1745237439968,-500.0,0.00046876,7]
[358531361,1745237439978,-538.61071507,0.00046876,7]
[358531363,1745237439988,-500.0,0.00046876,7]
[358531365,1745237439998,-499.40560064,0.00046876,7]
[358531367,1745237440007,-500.0,0.00046876,7]
[358531369,1745237440016,-500.0,0.00046876,7]
[358531371,1745237440025,-500.0,0.00046876,7]
[358531373,1745237440034,-500.0,0.00046876,7]
[358531375,1745237440043,-500.0,0.00046876,7]
[358531377,1745237440053,-1183.99,0.00046876,7]
[358531379,1745237440062,-589.81213946,0.00046876,7]
[358531381,1745237440071,-329.90160073,0.00046876,7]
[358531383,1745237440081,-500.0,0.00046876,7]
[358531385,1745237440090,-500.0,0.00046876,7]
[358531387,1745237440099,-500.0,0.00046876,7]
[358531389,1745237440108,-500.0,0.00046876,7]
[358531391,1745237440117,-500.0,0.00046876,7]
[358531393,1745237440127,-500.0,0.00046876,7]
[358531395,1745237440136,-500.0,0.00046876,7]
[358531397,1745237440147,-500.0,0.00046876,7]
[358531399,1745237440156,-500.0,0.00046876,7]
[358531401,1745237440171,-500.0,0.00046876,2]
[358531403,1745237440180,-500.0,0.00046876,7]
[358531405,1745237440189,-500.0,0.00046876,7]
[358531407,1745237440199,-500.0,0.00046876,7]
[358531409,1745237440209,-500.0,0.00046876,7]
[358531411,1745237440218,-500.0,0.00046876,7]
[358531413,1745237440228,-500.0,0.00046876,7]
[358531415,1745237440237,-500.0,0.00046876,7]
[358531417,1745237440247,-500.0,0.00046876,7]
[358531419,1745237440256,-538.24802769,0.00046876,7]
[358531421,1745237440265,-500.0,0.00046876,7]
[358531423,1745237440274,-500.0,0.00046876,7]
[358531425,1745237440283,-500.0,0.00046876,7]
[358531427,1745237440293,-500.0,0.00046876,7]
[358531429,1745237440302,-500.0,0.00046876,7]
[358531430,1745237440312,-414.9342157,0.00046876,7]
[358531432,1745237440321,-465.23,0.00046876,7]
[358531434,1745237440330,-500.0,0.00046876,7]
[358531437,1745237440340,-500.0,0.00046876,7]
[358531438,1745237440349,-500.0,0.00046876,7]
[358531440,1745237440359,-500.0,0.00046876,7]
[358531442,1745237440368,-500.0,0.00046876,7]
[358531445,1745237440378,-500.0,0.00046876,7]
[358531447,1745237440387,-500.0,0.00046876,7]
[358531448,1745237440396,-264.89218517,0.00046876,7]
[358531450,1745237440406,-500.0,0.00046876,7]
[358531452,1745237440416,-500.0,0.00046876,7]
[358531454,1745237440425,-500.0,0.00046876,7]
[358531456,1745237440434,-545.55730455,0.00046876,7]
[358531458,1745237440443,-500.0,0.00046876,7]
[358531460,1745237440452,-539.33255129,0.00046876,7]
[358531462,1745237440461,-537.4723925,0.00046876,7]
[358531464,1745237440471,-529.99028777,0.00046876,7]
[358531466,1745237440481,-500.0,0.00046876,7]
[358531468,1745237440490,-500.0,0.00046876,7]
[358531471,1745237440500,-500.0,0.00046876,7]
[358531472,1745237440510,-500.0,0.00046876,7]
[358531474,1745237440519,-500.0,0.00046876,7]
[358531476,1745237440529,-500.0,0.00046876,7]
[358531478,1745237440538,-500.0,0.00046876,7]
[358531480,1745237440547,-500.0,0.00046876,7]
[358531482,1745237440556,-646.47631652,0.00046876,7]
[358531484,1745237440566,-525.84463228,0.00046876,7]
[358531486,1745237440575,-500.0,0.00046876,7]
[358531488,1745237440585,-500.0,0.00046876,7]
[358531490,1745237440595,-500.0,0.00046876,7]
[358531492,1745237440605,-515.63110869,0.00046876,7]
[358531494,1745237440614,-518.66466167,0.00046876,7]
[358531496,1745237440623,-500.0,0.00046876,7]
[358531498,1745237440633,-500.0,0.00046876,7]
[358531500,1745237440643,-542.74255012,0.00046876,7]
[358531502,1745237440652,-308.66981791,0.00046876,7]
[358531504,1745237440662,-536.9611349,0.00046876,7]
[358531506,1745237440671,-500.0,0.00046876,7]
[358531507,1745237440681,-300.0,0.00046876,7]
[358531509,1745237440691,-500.0,0.00046876,7]
[358531511,1745237440701,-972.51,0.00046876,7]
[358531513,1745237440711,-546.89719232,0.00046876,7]
[358531515,1745237440721,-500.0,0.00046876,7]
[358531517,1745237440730,-590.2124972,0.00046876,7]
[358531520,1745237440740,-1259.64,0.00046876,7]
[358531522,1745237440751,-557.1846882,0.00046876,7]
[358531524,1745237440760,-356.66,0.00046876,7]
[358531526,1745237440770,-1246.93,0.00046877,5]
[358531528,1745237440779,-1237.88,0.00046877,5]
[358531530,1745237440789,-1246.52,0.00046877,5]
[358531532,1745237440799,-1228.5,0.00046877,5]
[358531534,1745237440809,-770.0,0.00046944,5]
[358531536,1745237440818,-1707.20690191,0.00046998,15]
[358531537,1745237440827,-555.41709652,0.00047,15]
[358531540,1745237440837,-798.6425792,0.00047054,2]
[358531541,1745237440846,-500.0,0.00047131,7]
[358531543,1745237440856,-500.0,0.00047131,7]
[358531545,1745237440865,-1019.44,0.00047131,2]
[358531547,1745237440874,-500.0,0.00047131,7]
[358531549,1745237440884,-500.0,0.00047131,7]
[358531551,1745237440893,-500.0,0.00047131,7]
[358531554,1745237440903,-23772.3384457,0.00047132,4]
[358531555,1745237440913,-528.31661947,0.00047142,7]
[358531557,1745237440922,-500.0,0.00047142,7]
[358531559,1745237440931,-500.0,0.00047142,7]
[358531561,1745237440940,-500.0,0.00047142,7]
[358531563,1745237440949,-527.29942996,0.00047142,7]
[358531565,1745237440960,-534.13489274,0.00047142,7]
[358531567,1745237440969,-500.0,0.00047142,7]
[358531569,1745237440979,-532.80482197,0.00047142,7]
[358531571,1745237440988,-500.0,0.00047142,7]
[358531573,1745237440998,-500.0,0.00047142,7]
[358531575,1745237441007,-500.0,0.00047142,7]
[358531577,1745237441016,-500.0,0.00047142,7]
[358531579,1745237441025,-500.0,0.00047142,7]
[358531581,1745237441034,-2039.97,0.00047176,2]
[358531584,1745237441047,-798.6425792,0.00047215,2]
[358531586,1745237441056,-1707.20690191,0.00047219,15]
[358531588,1745237441065,-250.0,0.00047289,120]
[358531589,1745237441075,-156.44,0.00047359,15]
[358531591,1745237441084,-156.44,0.00047359,15]
[358531594,1745237441094,-500.0,0.0004736,7]
[358531596,1745237441105,-500.0,0.0004736,7]
[358531598,1745237441114,-2937.54206,0.0004736,7]
[358531600,1745237441123,-821.72,0.0004736,7]
[358531601,1745237441132,-500.0,0.0004736,7]
[358531603,1745237441141,-715.44,0.0004736,7]
[358531605,1745237441151,-500.0,0.0004736,7]
[358531607,1745237441161,-1240.15,0.0004736,7]
[358531609,1745237441172,-500.0,0.0004736,7]
[358531611,1745237441182,-1170.6,0.0004736,7]
[358531613,1745237441191,-500.0,0.0004736,7]
[358531615,1745237441200,-500.0,0.0004736,7]
[358531617,1745237441210,-619.96444687,0.0004736,7]
[358531619,1745237441219,-500.0,0.0004736,7]
[358531621,1745237441229,-500.0,0.0004736,7]
[358531623,1745237441239,-500.0,0.0004736,7]
[358531625,1745237441248,-133782.37,0.0004736,7]
[358531627,1745237441257,-500.0,0.0004736,7]
[358531629,1745237441267,-188.94166894,0.0004736,7]
[358531632,1745237441277,-625.69,0.0004736,7]
[358531634,1745237441286,-500.0,0.0004736,7]
[358531636,1745237441295,-500.0,0.0004736,7]
[358531638,1745237441305,-670.53,0.0004736,7]
[358531640,1745237441314,-500.0,0.0004736,7]
[358531642,1745237441323,-500.0,0.0004736,7]
[358531644,1745237441332,-500.0,0.0004736,7]
[358531647,1745237441340,-500.0,0.0004736,7]
[358531649,1745237441350,-500.0,0.0004736,7]
[358531651,1745237441358,-500.0,0.0004736,7]
[358531653,1745237441367,-1112.01,0.0004736,7]
[358531654,1745237441376,-500.0,0.0004736,7]
[358531656,1745237441385,-500.0,0.0004736,7]
[358531658,1745237441394,-500.0,0.0004736,7]
[358531660,1745237441403,-500.0,0.0004736,7]
[358531662,1745237441413,-500.0,0.0004736,7]
[358531664,1745237441422,-1099.94,0.0004736,7]
[358531666,1745237441431,-200.0,0.00047375,2]
[358531668,1745237441441,-350.64624001,0.000474,2]
[358531670,1745237441450,-1707.20690191,0.00047441,15]
[358531673,1745237441460,-500.0,0.00047461,7]
[358531675,1745237441469,-500.0,0.00047461,7]
[358531677,1745237441478,-500.0,0.00047461,7]
[358531679,1745237441488,-500.0,0.00047461,7]
[358531680,1745237441497,-500.0,0.00047461,7]
[358531682,1745237441506,-500.0,0.00047461,7]
[358531683,1745237441515,-153.44,0.0004748,2]
[358531684,1745237441524,-23772.3384457,0.0004749,4]
[358531685,1745237441534,-1014.0,0.000475,12]
[358531686,1745237441543,-1000.0,0.000475,10]
[358531687,1745237441552,-1000.0,0.000475,7]
[358531688,1745237441561,-1000.0,0.000475,9]
[358531689,1745237441570,-798.6425792,0.00047508,2]
[358531690,1745237441579,-228.66,0.00047539,2]
[358531691,1745237441589,-500.0,0.000476,120]
[358531692,1745237441599,-1707.20690191,0.00047663,15]
[358531693,1745237441607,-500.0,0.00047677,7]
[358531694,1745237441617,-846.12,0.00047677,7]
[358531695,1745237441626,-500.0,0.00047677,7]
[358531696,1745237441636,-500.0,0.00047677,7]
[358531697,1745237441646,-500.0,0.00047677,7]
[358531698,1745237441655,-1000.0,0.00047677,7]
[358531699,1745237441665,-500.0,0.00047677,7]
[358531700,1745237441674,-500.0,0.00047677,7]
[358531701,1745237441683,-500.0,0.00047677,7]
[358531702,1745237441692,-500.0,0.00047677,7]
[358531703,1745237441701,-500.0,0.00047677,7]
[358531704,1745237441712,-674.61,0.00047677,7]
[358531705,1745237441721,-500.0,0.00047677,7]
[358531706,1745237441731,-500.0,0.00047677,7]
[358531707,1745237441740,-500.0,0.00047677,7]
[358531708,1745237441750,-500.0,0.00047677,7]
[358531709,1745237441759,-500.0,0.00047677,7]
[358531710,1745237441768,-500.0,0.00047677,7]
[358531711,1745237441777,-500.0,0.00047677,7]
[358531712,1745237441787,-500.0,0.00047677,7]
[358531713,1745237441796,-500.0,0.00047677,7]
[358531714,1745237441805,-500.0,0.00047677,7]
[358531715,1745237441814,-500.0,0.00047677,7]
[358531716,1745237441824,-649.96063563,0.00047677,7]
[358531717,1745237441833,-500.0,0.00047677,7]
[358531718,1745237441843,-500.0,0.00047677,7]
[358531719,1745237441852,-500.0,0.00047677,7]
[358531720,1745237441861,-150.0,0.0004768,7]
[358531721,1745237441871,-798.6425792,0.00047778,2]
[358531722,1745237441880,-380.07904313,0.00047798,25]
[358531723,1745237441889,-150.0,0.00047818,7]
[358531724,1745237441899,-319.34433626,0.00047873,10]
[358531725,1745237441908,-1707.20690191,0.00047884,15]
[358531726,1745237441918,-71317.0153371,0.00047888,4]
[358531727,1745237441927,-25560.8925248,0.00047888,4]
[358531728,1745237441937,-12780.4462624,0.00047889,4]
[358531729,1745237441947,-500.0,0.00047889,7]
[358531730,1745237441956,-500.0,0.00047889,7]
[358531731,1745237441966,-1019.44,0.00047889,2]
[358531732,1745237441976,-500.0,0.00047889,7]
[358531733,1745237441987,-500.0,0.00047889,7]
[358531734,1745237442085,-23772.3384457,0.0004789,4]
[358531735,1745237442108,-500.0,0.00047897,7]
[358531736,1745237442118,-500.0,0.00047897,7]
[358531737,1745237442129,-500.0,0.00047897,7]
[358531738,1745237442138,-272.94048715,0.00047897,7]
[358531739,1745237442147,-500.0,0.00047897,7]
[358531740,1745237442156,-500.0,0.00047897,7]
[358531741,1745237442171,-500.0,0.00047897,7]
[358531742,1745237442182,-500.0,0.00047897,7]
[358531743,1745237442192,-500.0,0.00047897,7]
[358531744,1745237442202,-500.0,0.00047897,7]
[358531745,1745237442213,-500.0,0.00047897,7]
[358531746,1745237442223,-500.0,0.00047897,7]
[358531747,1745237442233,-500.0,0.00047897,7]
[358531748,1745237442244,-2344.97,0.00047897,7]
[358531749,1745237442256,-500.0,0.00047898,7]
[358531750,1745237442266,-500.0,0.00047898,7]